[Event "Titled Tuesday Blitz August 22 Early 2023"]
[White "Harsh Suresh"]
[Black "Nasir, Zehn"]
[WhiteFideId "45018464"]
[BlackFideId "2613239"]
[WhiteElo "2878"]
[BlackElo "2652"]
[Result "1-0"]
[Round "5"]
[TimeControl "180+1"]
[Date "2023.08.22"]
[WhiteClock "0:00:33"]
[BlackClock "0:00:18"]
[Board "35"]

1. d4 {[%clk 0:03:00]}  Nf6 {[%clk 0:02:59]} 2. c4 {[%clk 0:03:00]}  c5 {[%clk 0:02:59]} 3. Nf3 {[%clk 0:02:55]}  cxd4 {[%clk 0:02:59]} 4. Nxd4 {[%clk 0:02:55]}  e5 {[%clk 0:02:59]} 5. Nf3 {[%clk 0:02:53]}  Nc6 {[%clk 0:02:59]} 6. g3 {[%clk 0:02:52]}  d5 {[%clk 0:02:58]} 7. cxd5 {[%clk 0:02:51]}  Qxd5 {[%clk 0:02:59]} 8. Qxd5 {[%clk 0:02:51]}  Nxd5 {[%clk 0:03:00]} 9. Bg2 {[%clk 0:02:49]}  Be6 {[%clk 0:02:28]} 10. O-O {[%clk 0:02:45]}  f6 {[%clk 0:02:26]} 11. Rd1 {[%clk 0:02:35]}  Rd8 {[%clk 0:02:15]} 12. Ne1 {[%clk 0:02:03]}  Bc5 {[%clk 0:02:06]} 13. Nd3 {[%clk 0:02:01]}  Bb6 {[%clk 0:02:03]} 14. Bd2 {[%clk 0:01:42]}  Nd4 {[%clk 0:01:59]} 15. Na3 {[%clk 0:01:29]}  Nxe2+ {[%clk 0:01:54]} 16. Kf1 {[%clk 0:01:29]}  Nd4 {[%clk 0:01:53]} 17. Rac1 {[%clk 0:01:25]}  O-O {[%clk 0:01:37]} 18. Nc4 {[%clk 0:01:23]}  Bg4 {[%clk 0:01:21]} 19. Re1 {[%clk 0:01:21]}  Bf5 {[%clk 0:01:18]} 20. Nb4 {[%clk 0:01:10]}  Nxb4 {[%clk 0:01:16]} 21. Bxb4 {[%clk 0:01:11]}  Bd3+ {[%clk 0:01:11]} 22. Kg1 {[%clk 0:01:12]}  Ne2+ {[%clk 0:00:54]} 23. Rxe2 {[%clk 0:01:11]}  Bxe2 {[%clk 0:00:55]} 24. Bxf8 {[%clk 0:01:10]}  Rc8 {[%clk 0:00:45]} 25. Bxb7 {[%clk 0:00:58]}  Rxc4 {[%clk 0:00:41]} 26. Bd5+ {[%clk 0:00:57]}  Kxf8 {[%clk 0:00:38]} 27. Bxc4 {[%clk 0:00:57]}  Bf3 {[%clk 0:00:37]} 28. Kf1 {[%clk 0:00:51]}  Ke7 {[%clk 0:00:36]} 29. Bd3 {[%clk 0:00:50]}  Bd5 {[%clk 0:00:34]} 30. b3 {[%clk 0:00:49]}  e4 {[%clk 0:00:33]} 31. Bxe4 {[%clk 0:00:42]}  Bxe4 {[%clk 0:00:28]} 32. Re1 {[%clk 0:00:42]}  f5 {[%clk 0:00:25]} 33. f3 {[%clk 0:00:42]}  Ba5 {[%clk 0:00:23]} 34. Re2 {[%clk 0:00:43]}  Kf6 {[%clk 0:00:20]} 35. fxe4 {[%clk 0:00:43]}  g6 {[%clk 0:00:17]} 36. exf5 {[%clk 0:00:43]}  gxf5 {[%clk 0:00:18]} 37. Kg2 {[%clk 0:00:43]}  Bb6 {[%clk 0:00:18]} 38. Kf3 {[%clk 0:00:44]}  h5 {[%clk 0:00:19]} 39. b4 {[%clk 0:00:43]}  Kg5 {[%clk 0:00:19]} 40. b5 {[%clk 0:00:43]}  h4 {[%clk 0:00:19]} 41. a4 {[%clk 0:00:42]}  hxg3 {[%clk 0:00:19]} 42. hxg3 {[%clk 0:00:43]}  Bc7 {[%clk 0:00:19]} 43. Re7 {[%clk 0:00:42]}  Bb6 {[%clk 0:00:19]} 44. Re6 {[%clk 0:00:42]}  Bc5 {[%clk 0:00:20]} 45. Rc6 {[%clk 0:00:42]}  Bd4 {[%clk 0:00:20]} 46. a5 {[%clk 0:00:42]}  f4 {[%clk 0:00:20]} 47. gxf4+ {[%clk 0:00:38]}  Kf5 {[%clk 0:00:21]} 48. Rd6 {[%clk 0:00:38]}  Bg1 {[%clk 0:00:19]} 49. Rd5+ {[%clk 0:00:35]}  Ke6 {[%clk 0:00:19]} 50. Ke4 {[%clk 0:00:36]}  Bf2 {[%clk 0:00:18]} 51. f5+ {[%clk 0:00:36]}  Kf6 {[%clk 0:00:19]} 52. b6 {[%clk 0:00:34]}  axb6 {[%clk 0:00:18]} 53. axb6 {[%clk 0:00:34]}  Ke7 {[%clk 0:00:18]} 54. b7 {[%clk 0:00:34]}  Bg3 {[%clk 0:00:18]} 55. Re5+ {[%clk 0:00:34]}  Kf6 {[%clk 0:00:15]} 56. b8=Q {[%clk 0:00:33]}  Bxe5 {[%clk 0:00:16]} 57. Qxe5+ {[%clk 0:00:33]}  Kg5 {[%clk 0:00:17]} 58. Qg7+ {[%clk 0:00:33]}  Kh5 {[%clk 0:00:17]} 59. Kf4 {[%clk 0:00:33]}  Kh4 {[%clk 0:00:18]} 60. Qh6# {[%clk 0:00:33]} 1-0


[Site "https://www.chess.com"]

[Event "Titled Tuesday Blitz August 22 Early 2023"]
[White "Sharan, Rao"]
[Black "Ilamparthi A R"]
[WhiteFideId "5073464"]
[BlackFideId "45015775"]
[WhiteElo "2650"]
[BlackElo "2875"]
[Result "0-1"]
[Round "5"]
[TimeControl "180+1"]
[Date "2023.08.22"]
[WhiteClock "0:00:00"]
[BlackClock "0:01:01"]
[Board "36"]

1. d4 {[%clk 0:03:00]}  d5 {[%clk 0:02:59]} 2. Nf3 {[%clk 0:03:00]}  Nf6 {[%clk 0:02:58]} 3. Bf4 {[%clk 0:03:00]}  c5 {[%clk 0:02:56]} 4. e3 {[%clk 0:02:59]}  Nc6 {[%clk 0:02:55]} 5. Nbd2 {[%clk 0:02:59]}  cxd4 {[%clk 0:02:55]} 6. exd4 {[%clk 0:02:59]}  Bg4 {[%clk 0:02:54]} 7. c3 {[%clk 0:02:55]}  e6 {[%clk 0:02:49]} 8. Bd3 {[%clk 0:02:47]}  Bd6 {[%clk 0:02:49]} 9. Bxd6 {[%clk 0:02:37]}  Qxd6 {[%clk 0:02:50]} 10. h3 {[%clk 0:02:36]}  Bh5 {[%clk 0:02:44]} 11. O-O {[%clk 0:02:34]}  O-O {[%clk 0:02:44]} 12. Re1 {[%clk 0:02:28]}  Rae8 {[%clk 0:02:42]} 13. Nf1 {[%clk 0:02:08]}  e5 {[%clk 0:02:31]} 14. dxe5 {[%clk 0:02:04]}  Nxe5 {[%clk 0:02:29]} 15. Be2 {[%clk 0:01:15]}  Nxf3+ {[%clk 0:02:26]} 16. Bxf3 {[%clk 0:01:16]}  Rxe1 {[%clk 0:02:26]} 17. Qxe1 {[%clk 0:01:16]}  Bxf3 {[%clk 0:02:26]} 18. gxf3 {[%clk 0:01:17]}  Re8 {[%clk 0:02:24]} 19. Qd2 {[%clk 0:01:16]}  Nh5 {[%clk 0:02:19]} 20. Qg5 {[%clk 0:00:54]}  Nf4 {[%clk 0:02:13]} 21. Qf5 {[%clk 0:00:28]}  g6 {[%clk 0:02:06]} 22. Qg4 {[%clk 0:00:28]}  h5 {[%clk 0:01:52]} 23. Qh4 {[%clk 0:00:28]}  Qe5 {[%clk 0:01:04]} 24. Ne3 {[%clk 0:00:00]}  g5 {[%clk 0:01:01]} 0-1


[Site "https://www.chess.com"]

[Event "Titled Tuesday Blitz August 22 Early 2023"]
[White "Frolyanov, Dmitry"]
[Black "Jones, Gawain C B"]
[WhiteFideId "4151976"]
[BlackFideId "409561"]
[WhiteElo "2642"]
[BlackElo "2869"]
[Result "0-1"]
[Round "5"]
[TimeControl "180+1"]
[Date "2023.08.22"]
[WhiteClock "0:00:06"]
[BlackClock "0:00:33"]
[Board "38"]

1. d4 {[%clk 0:02:56]}  d5 {[%clk 0:02:58]} 2. c4 {[%clk 0:02:53]}  e6 {[%clk 0:02:58]} 3. Nf3 {[%clk 0:02:52]}  a6 {[%clk 0:02:59]} 4. g3 {[%clk 0:02:48]}  dxc4 {[%clk 0:02:59]} 5. Bg2 {[%clk 0:02:48]}  Nc6 {[%clk 0:02:59]} 6. O-O {[%clk 0:02:47]}  Rb8 {[%clk 0:02:59]} 7. e4 {[%clk 0:02:30]}  Nf6 {[%clk 0:02:58]} 8. Nc3 {[%clk 0:02:22]}  Be7 {[%clk 0:02:57]} 9. d5 {[%clk 0:02:19]}  exd5 {[%clk 0:02:49]} 10. exd5 {[%clk 0:02:20]}  Nb4 {[%clk 0:02:50]} 11. Ne5 {[%clk 0:02:20]}  O-O {[%clk 0:02:45]} 12. Nxc4 {[%clk 0:02:18]}  b5 {[%clk 0:02:39]} 13. Ne3 {[%clk 0:02:01]}  a5 {[%clk 0:02:40]} 14. Re1 {[%clk 0:01:55]}  Na6 {[%clk 0:02:28]} 15. a4 {[%clk 0:01:55]}  b4 {[%clk 0:02:23]} 16. Nb5 {[%clk 0:01:55]}  Nc5 {[%clk 0:02:21]} 17. Nc4 {[%clk 0:01:47]}  Bg4 {[%clk 0:02:04]} 18. Qc2 {[%clk 0:01:27]}  b3 {[%clk 0:02:03]} 19. Qc3 {[%clk 0:01:17]}  Nxa4 {[%clk 0:01:50]} 20. Rxa4 {[%clk 0:01:04]}  Rxb5 {[%clk 0:01:35]} 21. Nxa5 {[%clk 0:01:04]}  Nxd5 {[%clk 0:01:11]} 22. Bxd5 {[%clk 0:01:02]}  Bf6 {[%clk 0:01:05]} 23. Bxf7+ {[%clk 0:00:35]}  Rxf7 {[%clk 0:01:05]} 24. Qc4 {[%clk 0:00:29]}  Re5 {[%clk 0:00:58]} 25. Be3 {[%clk 0:00:22]}  Be6 {[%clk 0:00:47]} 26. Qc1 {[%clk 0:00:19]}  Qd7 {[%clk 0:00:39]} 27. Nc6 {[%clk 0:00:19]}  Rf8 {[%clk 0:00:40]} 28. Nxe5 {[%clk 0:00:18]}  Qxa4 {[%clk 0:00:39]} 29. Nc6 {[%clk 0:00:17]}  Bd5 {[%clk 0:00:35]} 30. Bc5 {[%clk 0:00:12]}  Qxc6 {[%clk 0:00:33]} 31. Bxf8 {[%clk 0:00:12]}  Qxc1 {[%clk 0:00:33]} 32. Rxc1 {[%clk 0:00:06]}  Kxf8 {[%clk 0:00:33]} 0-1


[Site "https://www.chess.com"]

[Event "Titled Tuesday Blitz August 22 Early 2023"]
[White "Sadzikowski, Daniel"]
[Black "Cordova, Emilio"]
[WhiteFideId "1132253"]
[BlackFideId "3801497"]
[WhiteElo "2641"]
[BlackElo "2866"]
[Result "0-1"]
[Round "5"]
[TimeControl "180+1"]
[Date "2023.08.22"]
[WhiteClock "0:00:00"]
[BlackClock "0:00:15"]
[Board "39"]

1. e4 {[%clk 0:02:56]}  c5 {[%clk 0:02:59]} 2. Nf3 {[%clk 0:02:56]}  a6 {[%clk 0:02:57]} 3. c3 {[%clk 0:02:55]}  e6 {[%clk 0:02:56]} 4. d4 {[%clk 0:02:55]}  d5 {[%clk 0:02:57]} 5. e5 {[%clk 0:02:55]}  Nc6 {[%clk 0:02:57]} 6. a3 {[%clk 0:02:54]}  Nge7 {[%clk 0:02:56]} 7. b4 {[%clk 0:02:54]}  cxd4 {[%clk 0:02:56]} 8. cxd4 {[%clk 0:02:54]}  Nf5 {[%clk 0:02:57]} 9. Bb2 {[%clk 0:02:50]}  Bd7 {[%clk 0:02:56]} 10. Bd3 {[%clk 0:02:44]}  Rc8 {[%clk 0:02:55]} 11. O-O {[%clk 0:02:43]}  Qb6 {[%clk 0:02:54]} 12. Bxf5 {[%clk 0:02:43]}  exf5 {[%clk 0:02:50]} 13. Nc3 {[%clk 0:02:43]}  Be6 {[%clk 0:02:49]} 14. Rc1 {[%clk 0:02:40]}  Be7 {[%clk 0:02:36]} 15. Qd2 {[%clk 0:02:39]}  h6 {[%clk 0:02:36]} 16. Na4 {[%clk 0:02:35]}  Qa7 {[%clk 0:02:35]} 17. Nc5 {[%clk 0:02:34]}  O-O {[%clk 0:02:35]} 18. Ne1 {[%clk 0:02:28]}  Rc7 {[%clk 0:02:34]} 19. Ned3 {[%clk 0:02:27]}  Rfc8 {[%clk 0:02:34]} 20. Nf4 {[%clk 0:02:24]}  Nd8 {[%clk 0:02:34]} 21. Qd3 {[%clk 0:01:56]}  b6 {[%clk 0:01:29]} 22. Ncxe6 {[%clk 0:00:59]}  fxe6 {[%clk 0:01:27]} 23. Rxc7 {[%clk 0:00:46]}  Rxc7 {[%clk 0:01:28]} 24. Rc1 {[%clk 0:00:46]}  b5 {[%clk 0:01:27]} 25. Rxc7 {[%clk 0:00:36]}  Qxc7 {[%clk 0:01:28]} 26. Qc3 {[%clk 0:00:37]}  Qc4 {[%clk 0:01:08]} 27. Nd3 {[%clk 0:00:32]}  Nc6 {[%clk 0:01:05]} 28. f4 {[%clk 0:00:21]}  Kf7 {[%clk 0:01:05]} 29. Kf2 {[%clk 0:00:21]}  Bd8 {[%clk 0:00:58]} 30. h3 {[%clk 0:00:18]}  Bb6 {[%clk 0:00:58]} 31. Qxc4 {[%clk 0:00:17]}  dxc4 {[%clk 0:00:56]} 32. Nc5 {[%clk 0:00:17]}  Bxc5 {[%clk 0:00:56]} 33. dxc5 {[%clk 0:00:18]}  g5 {[%clk 0:00:54]} 34. fxg5 {[%clk 0:00:16]}  hxg5 {[%clk 0:00:53]} 35. g4 {[%clk 0:00:17]}  f4 {[%clk 0:00:50]} 36. Kf3 {[%clk 0:00:17]}  Ne7 {[%clk 0:00:50]} 37. Ke4 {[%clk 0:00:16]}  Nd5 {[%clk 0:00:51]} 38. Bd4 {[%clk 0:00:14]}  Ke8 {[%clk 0:00:51]} 39. Bf2 {[%clk 0:00:11]}  Kd7 {[%clk 0:00:50]} 40. h4 {[%clk 0:00:11]}  gxh4 {[%clk 0:00:49]} 41. Bxh4 {[%clk 0:00:12]}  c3 {[%clk 0:00:48]} 42. Kd3 {[%clk 0:00:13]}  f3 {[%clk 0:00:43]} 43. Bf2 {[%clk 0:00:12]}  Kc6 {[%clk 0:00:37]} 44. Bd4 {[%clk 0:00:10]}  Nf4+ {[%clk 0:00:36]} 45. Ke3 {[%clk 0:00:07]}  c2 {[%clk 0:00:36]} 46. Bb2 {[%clk 0:00:07]}  Ne2 {[%clk 0:00:30]} 47. Kxf3 {[%clk 0:00:06]}  c1=N {[%clk 0:00:29]} 48. Bxc1 {[%clk 0:00:07]}  Nxc1 {[%clk 0:00:29]} 49. Ke3 {[%clk 0:00:03]}  Na2 {[%clk 0:00:25]} 50. g5 {[%clk 0:00:03]}  Nc3 {[%clk 0:00:25]} 51. g6 {[%clk 0:00:04]}  Nd5+ {[%clk 0:00:25]} 52. Kf3 {[%clk 0:00:04]}  Ne7 {[%clk 0:00:26]} 53. g7 {[%clk 0:00:04]}  Kd5 {[%clk 0:00:25]} 54. Kf4 {[%clk 0:00:04]}  Ng8 {[%clk 0:00:15]} 55. Kg5 {[%clk 0:00:02]}  Kxe5 {[%clk 0:00:16]} 56. Kg6 {[%clk 0:00:03]}  Kd5 {[%clk 0:00:14]} 57. Kf7 {[%clk 0:00:03]}  Nh6+ {[%clk 0:00:15]} 58. Kg6 {[%clk 0:00:00]}  Nf5 {[%clk 0:00:15]} 0-1


[Site "https://www.chess.com"]

[Event "Titled Tuesday Blitz August 22 Early 2023"]
[White "Yeletsky, Ivan"]
[Black "Subelj, Jan"]
[WhiteFideId "24180327"]
[BlackFideId "14618583"]
[WhiteElo "2866"]
[BlackElo "2638"]
[Result "1-0"]
[Round "5"]
[TimeControl "180+1"]
[Date "2023.08.22"]
[WhiteClock "0:01:29"]
[BlackClock "0:01:16"]
[Board "40"]

1. d4 {[%clk 0:02:58]}  Nc6 {[%clk 0:03:00]} 2. Nf3 {[%clk 0:02:46]}  d5 {[%clk 0:02:57]} 3. e3 {[%clk 0:02:44]}  Nf6 {[%clk 0:02:56]} 4. Nbd2 {[%clk 0:02:41]}  Bf5 {[%clk 0:02:56]} 5. Bb5 {[%clk 0:02:41]}  e6 {[%clk 0:02:53]} 6. c4 {[%clk 0:02:40]}  Bd6 {[%clk 0:02:46]} 7. c5 {[%clk 0:02:41]}  Be7 {[%clk 0:02:45]} 8. Ne5 {[%clk 0:02:41]}  O-O {[%clk 0:02:43]} 9. Bxc6 {[%clk 0:02:41]}  bxc6 {[%clk 0:02:44]} 10. Nxc6 {[%clk 0:02:42]}  Qe8 {[%clk 0:02:44]} 11. Nxe7+ {[%clk 0:02:42]}  Qxe7 {[%clk 0:02:45]} 12. O-O {[%clk 0:02:43]}  e5 {[%clk 0:02:44]} 13. dxe5 {[%clk 0:02:32]}  Qxe5 {[%clk 0:02:45]} 14. Nf3 {[%clk 0:02:32]}  Qe7 {[%clk 0:02:45]} 15. Nd4 {[%clk 0:02:32]}  Bg4 {[%clk 0:02:42]} 16. Qc2 {[%clk 0:02:32]}  h5 {[%clk 0:02:39]} 17. Bd2 {[%clk 0:02:27]}  h4 {[%clk 0:02:38]} 18. f3 {[%clk 0:02:27]}  Bd7 {[%clk 0:02:37]} 19. Rae1 {[%clk 0:02:24]}  h3 {[%clk 0:02:37]} 20. g4 {[%clk 0:02:12]}  Rfe8 {[%clk 0:02:31]} 21. Kh1 {[%clk 0:02:00]}  Rab8 {[%clk 0:02:25]} 22. b3 {[%clk 0:01:59]}  g6 {[%clk 0:02:18]} 23. Rg1 {[%clk 0:01:58]}  Kg7 {[%clk 0:02:18]} 24. Rg3 {[%clk 0:01:55]}  Rh8 {[%clk 0:02:17]} 25. Bc3 {[%clk 0:01:52]}  Kg8 {[%clk 0:02:01]} 26. c6 {[%clk 0:01:41]}  Be6 {[%clk 0:01:52]} 27. Nxe6 {[%clk 0:01:34]}  Qxe6 {[%clk 0:01:50]} 28. Qb2 {[%clk 0:01:34]}  Ne4 {[%clk 0:01:26]} 29. Bxh8 {[%clk 0:01:28]}  Nxg3+ {[%clk 0:01:23]} 30. hxg3 {[%clk 0:01:29]}  d4 {[%clk 0:01:16]} 31. Qxd4 {[%clk 0:01:29]} 1-0


[Site "https://www.chess.com"]

[Event "Titled Tuesday Blitz August 22 Early 2023"]
[White "Chen, Ryo"]
[Black "Durarbayli, Vasif"]
[WhiteFideId "7003072"]
[BlackFideId "13402935"]
[WhiteElo "2636"]
[BlackElo "2855"]
[Result "0-1"]
[Round "5"]
[TimeControl "180+1"]
[Date "2023.08.22"]
[WhiteClock "0:00:24"]
[BlackClock "0:01:00"]
[Board "42"]

1. e4 {[%clk 0:03:00]}  c5 {[%clk 0:02:59]} 2. Nf3 {[%clk 0:03:00]}  Nc6 {[%clk 0:02:59]} 3. d4 {[%clk 0:03:01]}  cxd4 {[%clk 0:03:00]} 4. Nxd4 {[%clk 0:03:01]}  Nf6 {[%clk 0:03:00]} 5. Nc3 {[%clk 0:03:02]}  e5 {[%clk 0:03:01]} 6. Ndb5 {[%clk 0:03:02]}  d6 {[%clk 0:03:02]} 7. Bg5 {[%clk 0:03:02]}  a6 {[%clk 0:03:02]} 8. Na3 {[%clk 0:03:02]}  b5 {[%clk 0:03:00]} 9. Nd5 {[%clk 0:03:03]}  Be7 {[%clk 0:02:56]} 10. Bxf6 {[%clk 0:03:02]}  Bxf6 {[%clk 0:02:57]} 11. c3 {[%clk 0:02:58]}  Bg5 {[%clk 0:02:56]} 12. Nc2 {[%clk 0:02:57]}  Rb8 {[%clk 0:02:56]} 13. Be2 {[%clk 0:02:39]}  O-O {[%clk 0:02:52]} 14. O-O {[%clk 0:02:39]}  Kh8 {[%clk 0:02:52]} 15. Ncb4 {[%clk 0:02:18]}  Nxb4 {[%clk 0:02:42]} 16. Nxb4 {[%clk 0:02:09]}  Qb6 {[%clk 0:02:29]} 17. Nd5 {[%clk 0:02:00]}  Qc5 {[%clk 0:02:27]} 18. Bg4 {[%clk 0:01:39]}  Bb7 {[%clk 0:02:27]} 19. Qd3 {[%clk 0:01:28]}  f5 {[%clk 0:02:05]} 20. Bf3 {[%clk 0:01:26]}  Bxd5 {[%clk 0:01:41]} 21. Qxd5 {[%clk 0:01:24]}  Qxd5 {[%clk 0:01:42]} 22. exd5 {[%clk 0:01:25]}  Rfc8 {[%clk 0:01:42]} 23. Be2 {[%clk 0:01:21]}  a5 {[%clk 0:01:40]} 24. g3 {[%clk 0:01:06]}  b4 {[%clk 0:01:33]} 25. c4 {[%clk 0:01:04]}  e4 {[%clk 0:01:29]} 26. b3 {[%clk 0:00:56]}  Bf6 {[%clk 0:01:26]} 27. Rad1 {[%clk 0:00:56]}  Ra8 {[%clk 0:01:25]} 28. f3 {[%clk 0:00:55]}  exf3 {[%clk 0:01:25]} 29. Rxf3 {[%clk 0:00:51]}  g6 {[%clk 0:01:25]} 30. g4 {[%clk 0:00:51]}  Re8 {[%clk 0:01:22]} 31. Bd3 {[%clk 0:00:51]}  Bd4+ {[%clk 0:01:20]} 32. Kg2 {[%clk 0:00:49]}  fxg4 {[%clk 0:01:21]} 33. Rf4 {[%clk 0:00:49]}  Be5 {[%clk 0:01:18]} 34. Rxg4 {[%clk 0:00:45]}  a4 {[%clk 0:01:18]} 35. Rd2 {[%clk 0:00:33]}  axb3 {[%clk 0:01:16]} 36. axb3 {[%clk 0:00:33]}  Ra3 {[%clk 0:01:16]} 37. Bc2 {[%clk 0:00:32]}  Bc3 {[%clk 0:01:12]} 38. Rf2 {[%clk 0:00:32]}  Be1 {[%clk 0:01:12]} 39. Rf7 {[%clk 0:00:31]}  Ra2 {[%clk 0:01:09]} 40. Kf1 {[%clk 0:00:22]}  Rxc2 {[%clk 0:01:07]} 41. Rgf4 {[%clk 0:00:22]}  Bc3 {[%clk 0:01:02]} 42. Rf8+ {[%clk 0:00:20]}  Rxf8 {[%clk 0:01:02]} 43. Rxf8+ {[%clk 0:00:21]}  Kg7 {[%clk 0:01:03]} 44. Rd8 {[%clk 0:00:22]}  Be5 {[%clk 0:01:03]} 45. Rd7+ {[%clk 0:00:22]}  Kh6 {[%clk 0:01:03]} 46. h4 {[%clk 0:00:23]}  Rc3 {[%clk 0:01:03]} 47. Rb7 {[%clk 0:00:22]}  Rxb3 {[%clk 0:01:03]} 48. c5 {[%clk 0:00:22]}  dxc5 {[%clk 0:01:03]} 49. Rd7 {[%clk 0:00:23]}  Rd3 {[%clk 0:01:00]} 50. d6 {[%clk 0:00:24]} 0-1


[Site "https://www.chess.com"]

[Event "Titled Tuesday Blitz August 22 Early 2023"]
[White "Molina, Roberto Junio Brito"]
[Black "Aaditya Dhingra"]
[WhiteFideId "2109450"]
[BlackFideId "25678191"]
[WhiteElo "2852"]
[BlackElo "2634"]
[Result "0-1"]
[Round "5"]
[TimeControl "180+1"]
[Date "2023.08.22"]
[WhiteClock "0:00:03"]
[BlackClock "0:00:57"]
[Board "43"]

1. d4 {[%clk 0:02:50]}  g6 {[%clk 0:02:57]} 2. e4 {[%clk 0:02:50]}  Bg7 {[%clk 0:02:57]} 3. Nc3 {[%clk 0:02:50]}  c6 {[%clk 0:02:57]} 4. h4 {[%clk 0:02:48]}  h5 {[%clk 0:02:54]} 5. Be3 {[%clk 0:02:45]}  d5 {[%clk 0:02:54]} 6. Qd2 {[%clk 0:02:44]}  Nf6 {[%clk 0:02:52]} 7. e5 {[%clk 0:02:41]}  Ng4 {[%clk 0:02:50]} 8. Bf4 {[%clk 0:02:41]}  a5 {[%clk 0:02:46]} 9. Nf3 {[%clk 0:02:35]}  Na6 {[%clk 0:02:45]} 10. Ng5 {[%clk 0:02:21]}  Nc7 {[%clk 0:02:42]} 11. f3 {[%clk 0:02:21]}  Nh6 {[%clk 0:02:40]} 12. O-O-O {[%clk 0:02:21]}  Ne6 {[%clk 0:02:38]} 13. Nxe6 {[%clk 0:02:21]}  Bxe6 {[%clk 0:02:38]} 14. Kb1 {[%clk 0:02:21]}  a4 {[%clk 0:02:36]} 15. a3 {[%clk 0:02:20]}  Qb6 {[%clk 0:02:29]} 16. Be3 {[%clk 0:02:14]}  Nf5 {[%clk 0:02:27]} 17. Bf2 {[%clk 0:02:14]}  Bh6 {[%clk 0:02:25]} 18. Qd3 {[%clk 0:02:13]}  Bf4 {[%clk 0:02:22]} 19. Rh3 {[%clk 0:01:53]}  Bxe5 {[%clk 0:02:20]} 20. g4 {[%clk 0:01:53]}  hxg4 {[%clk 0:02:16]} 21. fxg4 {[%clk 0:01:54]}  Nh6 {[%clk 0:02:15]} 22. Be2 {[%clk 0:01:44]}  Nxg4 {[%clk 0:02:09]} 23. Bg1 {[%clk 0:01:40]}  Bd6 {[%clk 0:02:06]} 24. Ka1 {[%clk 0:01:36]}  Bf5 {[%clk 0:02:01]} 25. Qf3 {[%clk 0:01:31]}  Nf6 {[%clk 0:01:58]} 26. Rh1 {[%clk 0:01:27]}  Bxc2 {[%clk 0:01:58]} 27. Re1 {[%clk 0:01:26]}  Qb3 {[%clk 0:01:47]} 28. Bh2 {[%clk 0:01:07]}  Bxh2 {[%clk 0:01:39]} 29. Rxh2 {[%clk 0:01:08]}  Ne4 {[%clk 0:01:34]} 30. Bc4 {[%clk 0:00:34]}  Qxc4 {[%clk 0:01:31]} 31. Rxc2 {[%clk 0:00:34]}  O-O-O {[%clk 0:01:21]} 32. Rec1 {[%clk 0:00:23]}  Nxc3 {[%clk 0:01:16]} 33. Rxc3 {[%clk 0:00:24]}  Qxd4 {[%clk 0:01:16]} 34. Qxf7 {[%clk 0:00:22]}  Qf6 {[%clk 0:01:13]} 35. Rf1 {[%clk 0:00:15]}  Qxf7 {[%clk 0:01:12]} 36. Rxf7 {[%clk 0:00:16]}  Kd7 {[%clk 0:01:11]} 37. Rg3 {[%clk 0:00:16]}  Rdg8 {[%clk 0:01:09]} 38. Re3 {[%clk 0:00:16]}  Re8 {[%clk 0:01:09]} 39. Rg7 {[%clk 0:00:16]}  Rxh4 {[%clk 0:01:08]} 40. Rxg6 {[%clk 0:00:15]}  Re4 {[%clk 0:01:07]} 41. Rd3 {[%clk 0:00:15]}  b5 {[%clk 0:01:05]} 42. Kb1 {[%clk 0:00:15]}  Re2 {[%clk 0:01:04]} 43. Rc3 {[%clk 0:00:13]}  Rc8 {[%clk 0:01:00]} 44. Rh3 {[%clk 0:00:13]}  Rf8 {[%clk 0:00:58]} 45. Rc3 {[%clk 0:00:13]}  Rf1+ {[%clk 0:00:58]} 46. Ka2 {[%clk 0:00:03]}  Ree1 {[%clk 0:00:57]} 0-1


[Site "https://www.chess.com"]

[Event "Titled Tuesday Blitz August 22 Early 2023"]
[White "Paichadze, Luka"]
[Black "CrazyAdvenTures"]
[WhiteFideId "13602934"]
[WhiteElo "2826"]
[BlackElo "2629"]
[Result "0-1"]
[Round "5"]
[TimeControl "180+1"]
[Date "2023.08.22"]
[WhiteClock "0:00:00"]
[BlackClock "0:00:06"]
[Board "46"]

1. e4 {[%clk 0:03:00]}  e5 {[%clk 0:02:58]} 2. d4 {[%clk 0:02:59]}  exd4 {[%clk 0:02:58]} 3. Qxd4 {[%clk 0:03:00]}  Nc6 {[%clk 0:02:58]} 4. Qe3 {[%clk 0:03:00]}  Nf6 {[%clk 0:02:58]} 5. Nc3 {[%clk 0:03:01]}  Bb4 {[%clk 0:02:56]} 6. Bd2 {[%clk 0:03:01]}  O-O {[%clk 0:02:56]} 7. O-O-O {[%clk 0:03:02]}  Re8 {[%clk 0:02:57]} 8. Bc4 {[%clk 0:03:02]}  Bxc3 {[%clk 0:02:25]} 9. Bxc3 {[%clk 0:03:03]}  Nxe4 {[%clk 0:02:26]} 10. Qf4 {[%clk 0:03:02]}  Nxc3 {[%clk 0:02:04]} 11. Bxf7+ {[%clk 0:03:00]}  Kh8 {[%clk 0:02:04]} 12. Bxe8 {[%clk 0:02:59]}  Nxa2+ {[%clk 0:02:00]} 13. Kb1 {[%clk 0:02:59]}  Qxe8 {[%clk 0:01:52]} 14. Kxa2 {[%clk 0:02:59]}  d6 {[%clk 0:01:50]} 15. Nf3 {[%clk 0:02:57]}  Be6+ {[%clk 0:01:49]} 16. Kb1 {[%clk 0:02:56]}  h6 {[%clk 0:01:22]} 17. Rhe1 {[%clk 0:02:53]}  Qg6 {[%clk 0:01:08]} 18. Nh4 {[%clk 0:02:33]}  Qh5 {[%clk 0:01:03]} 19. Rd3 {[%clk 0:01:48]}  Bf7 {[%clk 0:00:21]} 20. Nf3 {[%clk 0:01:22]}  Rf8 {[%clk 0:00:18]} 21. Kc1 {[%clk 0:01:12]}  Kg8 {[%clk 0:00:16]} 22. Qd2 {[%clk 0:01:04]}  a5 {[%clk 0:00:13]} 23. h3 {[%clk 0:01:03]}  Nb4 {[%clk 0:00:13]} 24. Rd4 {[%clk 0:00:57]}  Qc5 {[%clk 0:00:13]} 25. Re7 {[%clk 0:00:52]}  Bg6 {[%clk 0:00:08]} 26. Ne1 {[%clk 0:00:28]}  Nc6 {[%clk 0:00:08]} 27. Rd5 {[%clk 0:00:22]}  Qc4 {[%clk 0:00:08]} 28. Rxc7 {[%clk 0:00:19]}  Qa2 {[%clk 0:00:07]} 29. Qd1 {[%clk 0:00:09]}  Rxf2 {[%clk 0:00:07]} 30. Rxa5 {[%clk 0:00:02]}  Qxa5 {[%clk 0:00:07]} 31. Kb1 {[%clk 0:00:00]}  Qxc7 {[%clk 0:00:06]} 0-1


[Site "https://www.chess.com"]